bitfinex/quotes_ETHUSD_20251031
["timestamp","ask_amount","ask_price","bid_price","bid_amount"]
[1761882615678,0.002,3834.8,3834.7,3.55386592]
[1761882616394,6.941678,3834.8,3834.7,0.9461]
[1761882617721,6.941678,3834.8,3834.7,3.55386592]
[1761882617921,5.428921,3834.8,3834.7,3.55386592]
[1761882618095,3.516921,3834.8,3834.7,3.55386592]
[1761882618999,1.40168,3834.8,3834.7,3.55386592]
[1761882619347,1.40168,3834.8,3834.7,3.95194994]
[1761882619522,0.002,3834.8,3834.7,3.97802759]
[1761882619898,0.002,3834.8,3834.7,3.95194994]
[1761882620510,0.002,3834.8,3834.7,4.08154994]
[1761882620705,0.002,3834.8,3834.7,3.07776592]
[1761882621007,2.231533,3834.8,3834.7,3.57106592]
[1761882621209,0.002,3834.8,3834.7,3.57106592]
[1761882621431,3.516793,3834.8,3834.7,3.57106592]
[1761882622043,3.516793,3834.8,3834.7,0.47]
[1761882622530,3.516793,3834.8,3834.7,3.57106592]
[1761882623307,0.002,3834.8,3834.7,3.57106592]
[1761882625702,0.002,3834.8,3834.7,3.07776592]
[1761882625918,5.541998,3834.8,3834.7,2.60776592]
[1761882626404,5.539998,3834.7,3834.3,2.60803118]
[1761882626634,3.675899,3834.7,3834.3,2.60803118]
[1761882627142,3.675899,3834.7,3834.3,3.10133118]
[1761882627300,5.539998,3834.4,3834.2,2.60804698]
[1761882627507,4.90812232,3834.5,3834.1,0.2107]
[1761882627707,3.485564,3834.4,3834.1,0.704]
[1761882627920,3.485564,3834.4,3834.3,2.60803797]
[1761882628222,5.175959,3834.4,3834.3,2.60803797]
[1761882628424,4.371815,3834.4,3834.3,2.60803797]
[1761882628641,3.267534,3834.4,3834.3,2.60803797]
[1761882628847,3.210834,3834.4,3834.3,3.09883797]
[1761882629145,3.472122,3834.4,3834.3,3.09883797]
[1761882630134,4.083284,3834.4,3834.3,3.09883797]
[1761882630937,4.083284,3834.4,3834.3,3.09983797]
[1761882631138,5.539998,3834.4,3834.3,2.60903797]
[1761882631348,5.097754,3834.4,3834.3,2.60903797]
[1761882631643,4.968777,3834.4,3834.3,2.60903797]
[1761882632119,0.1304,3834.4,3834.3,3.59313797]
[1761882632311,3.3698,3834.4,3834.3,3.59313797]
[1761882632512,3.3698,3834.4,3834.3,3.09983797]
[1761882632940,3.3698,3834.4,3834.3,0.001]
[1761882633142,5.727098,3834.4,3834.3,0.001]
[1761882633449,4.313937,3834.4,3834.3,0.001]
[1761882633651,6.68466293,3834.4,3834.3,0.001]
[1761882633855,7.17306293,3834.4,3834.3,0.001]
[1761882634054,8.58622393,3834.4,3834.3,0.001]
[1761882634353,8.09782393,3834.4,3834.3,0.001]
[1761882634532,8.58622393,3834.4,3834.3,0.001]
[1761882635653,11.19419388,3834.4,3834.3,0.001]
[1761882636017,8.58622393,3834.4,3834.3,0.001]
[1761882637558,11.75434725,3834.4,3834.3,0.001]
[1761882637755,11.69764725,3834.4,3834.3,0.001]
[1761882638257,12.94924625,3834.4,3834.3,0.001]
[1761882638422,1.39968,3834.4,3834.3,3.59313797]
[1761882638622,1.53008,3834.4,3834.3,3.59313797]
[1761882639432,7.070078,3834.4,3834.3,0.4918]
[1761882639638,7.070078,3834.4,3834.3,3.09983797]
[1761882640457,7.070078,3834.4,3834.3,0.4918]
[1761882640653,6.602159,3834.4,3834.3,0.4918]
[1761882641077,6.602159,3834.4,3834.3,0.001]
[1761882641078,6.658859,3834.4,3834.3,0.001]
[1761882641239,7.81555713,3834.4,3834.3,0.001]
[1761882641566,8.28347613,3834.4,3834.3,0.001]
[1761882643337,8.77187613,3834.4,3834.3,0.001]
[1761882644758,8.28347613,3834.4,3834.3,0.001]
[1761882645067,8.77187613,3834.4,3834.3,0.001]
[1761882647379,8.28347613,3834.4,3834.3,0.001]
[1761882648654,2.74347813,3834.4,3834.3,0.001]
[1761882648974,8.28347613,3834.4,3834.3,0.001]
[1761882649797,8.77187613,3834.4,3834.3,0.001]
[1761882650138,8.28347613,3834.4,3834.3,0.001]
[1761882657077,8.76267613,3834.4,3834.3,0.001]
[1761882658069,8.28347613,3834.4,3834.3,0.001]
[1761882659493,8.76267613,3834.4,3834.3,0.001]
[1761882660482,8.28347613,3834.4,3834.3,0.001]
[1761882660808,11.24024608,3834.4,3834.3,0.001]
[1761882661107,11.24024608,3834.4,3834.3,0.9659]
[1761882661108,1.39968,3834.4,3834.3,0.9659]
[1761882661313,0.002,3834.8,3834.3,3.57393797]
[1761882661476,8.62828232,3834.8,3834.7,0.4767]
[1761882661671,10.02796232,3834.8,3834.7,0.4767]
[1761882661869,10.02796232,3834.8,3834.7,0.9649]
[1761882662071,1.40168,3834.8,3834.7,0.9649]
[1761882662506,8.85445632,3834.8,3834.7,0.9649]
[1761882662707,3.946334,3834.8,3834.7,0.9649]
[1761882663112,3.828208,3834.8,3834.7,0.9649]
[1761882663306,1.40168,3834.8,3834.7,3.57266592]
[1761882663481,0.002,3834.8,3834.7,3.57266592]
[1761882663685,0.002,3834.8,3834.7,4.19332613]
[1761882666300,0.002,3834.8,3834.7,4.21940378]
[1761882667610,0.002,3834.8,3834.7,4.19332613]
[1761882668915,0.002,3834.8,3834.7,4.21940378]
[1761882669912,0.002,3834.8,3834.7,4.32391951]
[1761882670220,0.002,3834.8,3834.7,4.29784186]
[1761882670892,0.002,3834.8,3834.7,4.42744186]
[1761882671414,0.002,3834.8,3834.7,4.45351951]
[1761882673883,0.002,3834.8,3834.7,4.42744186]
[1761882680122,0.002,3834.8,3834.7,4.32292613]
[1761882683151,0.0785,3834.8,3834.7,3.35802613]
[1761882683338,0.002,3834.8,3834.7,3.22596592]
[1761882684051,0.002,3834.8,3834.7,3.68116592]
[1761882684452,0.002,3834.8,3834.7,2.73736592]
[1761882686179,0.2624,3834.8,3834.6,0.001]
[1761882686484,0.1316,3834.8,3834.7,2.60776592]
[1761882686676,0.002,3834.8,3834.7,3.57764357]
[1761882687082,0.002,3834.8,3834.7,3.9714785]
[1761882687257,0.002,3834.8,3834.7,4.1010785]
[1761882693353,0.002,3834.8,3834.7,4.20559505]
[1761882695667,0.002,3834.8,3834.7,4.1795174]
[1761882696994,0.002,3834.8,3834.7,4.20559505]
[1761882698865,0.002,3834.8,3834.7,4.1795174]
[1761882701461,0.002,3834.8,3834.7,4.20559505]
[1761882703515,0.0785,3834.8,3834.7,3.26179505]
[1761882703798,0.002,3834.8,3834.7,3.22596592]
[1761882704097,0.002,3834.8,3834.7,3.68116592]
[1761882704268,0.002,3834.8,3834.7,2.73736592]
[1761882705061,0.0785,3834.8,3834.7,2.73736592]
[1761882705296,0.002,3834.8,3834.7,3.22596592]
[1761882705510,0.002,3834.8,3834.7,4.33624355]
[1761882705716,0.002,3834.8,3834.7,4.3101659]
[1761882705919,0.002,3834.8,3834.7,4.33624355]
[1761882706202,0.002,3834.8,3834.7,4.46584355]
[1761882711407,0.002,3834.8,3834.7,4.4397659]
[1761882717036,0.002,3834.8,3834.7,3.9845659]
[1761882717732,0.002,3834.8,3834.7,4.47874355]
[1761882717932,0.002,3834.8,3834.7,4.88424755]
[1761882722917,1e-08,3835.2,3834.7,4.88424755]
[1761882723119,1e-08,3835.2,3835.1,8.9923532]
[1761882723431,1e-08,3835.2,3835.1,9.1219532]
[1761882723608,1e-08,3835.2,3835.1,9.5900532]
[1761882724037,1e-08,3835.2,3835.1,9.69454654]
[1761882724272,1e-08,3835.2,3835.1,11.05486308]
[1761882727468,1e-08,3835.2,3835.1,11.83932898]
[1761882729050,1e-08,3835.2,3835.1,11.37122898]
[1761882729664,1e-08,3835.2,3835.1,10.43964898]
[1761882730762,1e-08,3835.2,3835.1,10.44064898]
[1761882731370,0.05630001,3835.2,3835.1,4.20290381]
[1761882731567,0.54500001,3835.2,3835.1,2.60849393]
[1761882732242,0.54500001,3835.2,3835.1,0.001]
[1761882732446,7.48467801,3835.2,3835.1,0.001]
[1761882732643,8.72334993,3835.2,3835.1,0.001]
[1761882732846,13.6253911,3835.2,3835.1,0.001]
[1761882733249,16.23281704,3835.2,3835.1,0.001]
[1761882733557,1.50423344,3835.2,3835.1,0.001]
[1761882733880,1e-08,3835.2,3835.1,3.53869393]
[1761882734050,1e-08,3835.2,3835.1,3.56476886]
[1761882734247,1e-08,3835.2,3835.1,3.09666886]
[1761882734472,1e-08,3835.2,3835.1,3.64101266]
[1761882735683,0.05630001,3835.2,3835.1,3.17891266]
[1761882735987,0.54500001,3835.2,3835.1,3.17891266]
[1761882736685,1e-08,3835.2,3835.1,3.20498759]
[1761882736849,1e-08,3835.2,3835.1,3.67418759]
[1761882737050,1e-08,3835.2,3835.1,4.15668759]
[1761882737857,1e-08,3835.2,3835.1,4.13061266]
[1761882738189,1e-08,3835.2,3835.1,3.64811266]
[1761882738355,1e-08,3835.2,3835.1,3.17891266]
[1761882738908,0.06310001,3835.2,3835.1,3.17891266]
[1761882739808,1e-08,3835.2,3835.1,3.17891266]
[1761882740514,1e-08,3835.2,3835.1,4.13171266]
[1761882740872,1e-08,3835.2,3835.1,3.17891266]
[1761882741607,1e-08,3835.2,3835.1,3.30851266]
[1761882741808,0.52850001,3835.2,3835.1,3.30851266]
[1761882742132,0.52850001,3835.2,3835.1,2.73809393]
[1761882743193,0.06310001,3835.2,3835.1,2.73809393]
[1761882743416,0.06310001,3835.2,3835.1,2.76416886]
[1761882743620,0.06310001,3835.2,3835.1,2.73809393]
[1761882744699,0.52850001,3835.2,3835.1,2.73809393]
[1761882745590,0.52850001,3835.2,3835.1,2.60849393]
[1761882752704,0.06310001,3835.2,3835.1,2.63456886]
[1761882753223,1e-08,3835.2,3835.1,4.03424886]
[1761882753603,1e-08,3835.2,3835.1,4.52354886]
[1761882753804,1e-08,3835.2,3835.1,4.65314886]
[1761882754239,1e-08,3835.2,3835.1,5.4255656]
[1761882754538,1e-08,3835.2,3835.1,5.86299067]
[1761882755330,1e-08,3835.2,3835.1,3.99981067]
[1761882755851,1e-08,3835.2,3835.1,4.0258856]
[1761882756008,1e-08,3835.2,3835.1,4.4893856]
[1761882756840,1e-08,3835.2,3835.1,4.46331067]
[1761882757027,1e-08,3835.2,3835.1,3.99981067]
[1761882757445,0.54540001,3835.2,3835.1,2.73809393]
[1761882757608,0.08380001,3835.2,3835.1,2.73809393]
[1761882757815,0.54540001,3835.2,3835.1,2.73809393]
[1761882758141,0.08380001,3835.2,3835.1,2.76416886]
[1761882758709,1e-08,3835.2,3835.1,2.76416886]
[1761882760011,1e-08,3835.2,3835.1,3.7906376]
[1761882760215,1e-08,3835.2,3835.1,4.2541376]
[1761882761518,1e-08,3835.2,3835.1,3.7906376]
[1761882761714,0.08380001,3835.2,3835.1,2.73809393]
[1761882763742,0.54540001,3835.2,3835.1,2.76416886]
[1761882764123,0.08380001,3835.2,3835.1,2.73809393]
[1761882764622,3.55002401,3835.2,3835.1,0.001]
[1761882764816,1.39060653,3835.2,3835.1,2.60849393]
[1761882765827,0.08380001,3835.2,3835.1,2.60849393]
[1761882768439,0.54540001,3835.2,3835.1,2.60849393]
[1761882769658,0.54540001,3835.2,3835.1,0.001]
[1761882770030,0.54540001,3835.2,3835.1,2.60849393]
[1761882771162,6.08539801,3835.2,3835.1,2.60849393]
[1761882771756,7.19710193,3835.2,3835.1,0.001]
[1761882771964,7.19710193,3835.2,3835.1,2.60849393]
[1761882772166,7.19710193,3835.2,3835.1,0.001]
[1761882772949,12.0991431,3835.2,3835.1,0.001]
[1761882773151,16.51175304,3835.2,3835.1,0.001]
[1761882773663,16.61631767,3835.2,3835.1,0.001]
[1761882774364,12.0659391,3835.2,3835.1,0.001]
[1761882774739,11.6604351,3835.2,3835.1,0.001]
[1761882775059,4.24701001,3835.2,3835.1,0.001]
[1761882775261,9.83334118,3835.2,3835.1,0.001]
[1761882776235,12.38711918,3835.2,3835.1,0.001]
[1761882777247,3.95067001,3835.2,3835.1,0.001]
[1761882778368,7.48507801,3835.2,3835.1,0.001]
[1761882778746,4.33024901,3835.2,3835.1,0.001]
[1761882779046,1.48348001,3835.2,3835.1,0.001]
[1761882779241,1.48348001,3835.2,3835.1,3.06089393]
[1761882779242,1e-08,3835.2,3835.1,3.06089393]
[1761882779432,1e-08,3835.2,3835.1,4.08884984]
[1761882779633,1e-08,3835.2,3835.1,3.63034984]
[1761882780466,0.54520001,3835.2,3835.1,0.001]
[1761882780657,6.08519801,3835.2,3835.1,0.001]
[1761882782671,5.97032101,3835.2,3835.1,0.001]
[1761882782866,0.54520001,3835.2,3835.1,0.001]
[1761882783067,4.73933601,3835.2,3835.1,0.001]
[1761882783638,5.14729201,3835.2,3835.1,0.001]
[1761882784063,3.87023501,3835.2,3835.1,2.60849393]
[1761882784380,3.20504301,3835.2,3835.1,0.001]
[1761882784676,4.73541401,3835.2,3835.1,0.001]
[1761882784992,6.60863541,3835.2,3835.1,0.001]
[1761882785774,7.67434341,3835.2,3835.1,0.001]
[1761882785972,7.42014041,3835.2,3835.1,0.001]
[1761882786681,8.08801941,3835.2,3835.1,0.001]
[1761882786887,7.41843941,3835.2,3835.1,0.001]
[1761882787751,8.08801941,3835.2,3835.1,0.001]
[1761882788194,7.53560641,3835.2,3835.1,0.001]
[1761882788607,9.14027635,3835.2,3835.1,0.001]
[1761882788782,10.56584535,3835.2,3835.1,0.001]
[1761882791343,10.97134935,3835.2,3835.1,0.001]
[1761882793272,11.38031509,3835.2,3835.1,0.001]
[1761882794485,10.97134935,3835.2,3835.1,0.001]
[1761882796564,7.95841941,3835.2,3835.1,0.001]
[1761882797184,4.46297501,3835.2,3835.1,0.001]
[1761882797884,7.00677801,3835.2,3835.1,0.001]
[1761882800184,6.41649901,3835.2,3835.1,0.4551]
[1761882800560,5.27914301,3835.2,3835.1,0.4551]
[1761882801086,6.64042501,3835.2,3835.1,0.001]
[1761882801461,6.71162501,3835.2,3835.1,0.001]
[1761882801962,7.01087801,3835.2,3835.1,0.001]
[1761882802992,1.47088001,3835.2,3835.1,0.001]
[1761882803160,7.01087801,3835.2,3835.1,0.001]
[1761882803360,8.73793007,3835.2,3835.1,0.001]
[1761882803777,8.26393007,3835.2,3835.1,0.001]
[1761882803979,11.34535601,3835.2,3835.1,0.001]
[1761882804291,8.73793007,3835.2,3835.1,0.001]
[1761882805370,11.34535601,3835.2,3835.1,0.001]
[1761882805991,11.75086001,3835.2,3835.1,0.001]
[1761882808193,11.27686001,3835.2,3835.1,0.001]
[1761882808497,11.75086001,3835.2,3835.1,0.001]
[1761882808797,8.73793007,3835.2,3835.1,0.001]
[1761882808998,11.34535601,3835.2,3835.1,0.001]
[1761882809585,8.73793007,3835.2,3835.1,0.001]
[1761882809788,2.20642601,3835.2,3835.1,0.9169]
[1761882809999,1e-08,3835.2,3835.1,0.9169]
[1761882810205,2.03789701,3835.2,3835.1,0.9169]
[1761882810403,1e-08,3835.2,3835.1,0.9169]
[1761882810606,1e-08,3835.2,3835.1,3.06259393]
[1761882810782,1e-08,3835.2,3835.1,3.83065332]
[1761882810984,0.12960001,3835.2,3835.1,3.83065332]
[1761882814108,1e-08,3835.2,3835.1,3.83065332]
[1761882818812,1e-08,3835.2,3835.1,2.60849393]
[1761882819025,1e-08,3835.2,3835.1,3.06259393]
[1761882819225,5.53999801,3835.2,3835.1,0.4551]
[1761882819515,1e-08,3835.2,3835.1,0.001]
[1761882819684,5.53999801,3835.2,3835.1,0.001]
[1761882820280,1e-08,3835.2,3835.1,2.60849393]
[1761882820609,1e-08,3835.2,3835.1,3.06259393]
[1761882821216,1e-08,3835.2,3835.1,3.52439393]
[1761882821714,5.53999801,3835.2,3835.1,3.52439393]
[1761882822013,0.12960001,3835.2,3835.1,0.001]
[1761882822181,5.66959801,3835.2,3835.1,0.4551]
[1761882822381,5.66959801,3835.2,3835.1,3.06259393]
[1761882823119,2.95413601,3835.2,3835.1,3.52439393]
[1761882823304,2.95413601,3835.2,3835.1,0.9169]
[1761882823486,3.96704301,3835.2,3835.1,3.52439393]
[1761882823819,3.96704301,3835.2,3835.1,0.4551]
[1761882824317,3.96704301,3835.2,3835.1,0.001]
[1761882824632,3.03482701,3835.2,3835.1,0.001]
[1761882824917,0.12960001,3835.2,3835.1,3.06259393]
[1761882825083,2.15266801,3835.2,3835.1,3.52439393]
[1761882825484,3.80630501,3835.2,3835.1,3.52439393]
[1761882825814,0.12960001,3835.2,3835.1,3.52439393]
[1761882826121,5.66959801,3835.2,3835.1,0.4551]
[1761882828083,3.03949601,3835.2,3835.1,3.06259393]
[1761882828418,0.12960001,3835.2,3835.1,3.52439393]
[1761882828606,4.38995901,3835.2,3835.1,3.52439393]
[1761882828805,0.12960001,3835.2,3835.1,3.52439393]
[1761882830615,3.46756501,3835.2,3835.1,3.52439393]
[1761882831119,3.10756501,3835.2,3835.1,3.52439393]
[1761882831416,3.10756501,3835.2,3835.1,3.06259393]
[1761882831621,5.53878601,3835.2,3835.1,0.001]
[1761882831810,6.56336461,3835.2,3835.1,0.001]
[1761882831998,7.96304461,3835.2,3835.1,0.001]
[1761882832598,10.77578255,3835.2,3835.1,0.001]
[1761882832803,8.16835661,3835.2,3835.1,0.001]
[1761882833000,5.35412161,3835.2,3835.1,0.001]
[1761882833621,2.63215861,3835.2,3835.1,0.001]
[1761882833925,8.17215661,3835.2,3835.1,0.001]
[1761882835326,6.77247661,3835.2,3835.1,0.001]
[1761882836736,1.23247861,3835.2,3835.1,0.001]
[1761882836937,6.77247661,3835.2,3835.1,0.001]
[1761882837438,9.37990255,3835.2,3835.1,0.001]
[1761882837943,6.77247661,3835.2,3835.1,0.001]
[1761882838245,6.77247661,3835.2,3831.2,3.29035286]
[1761882838246,8.14796795,3834.4,3834.1,0.011]
[1761882838444,8.14796795,3834.4,3833.9,0.001]
[1761882838445,5.539998,3834.1,3833.9,0.001]
[1761882838605,11.51155279,3834.0,3833.9,0.001]
[1761882838806,6.48349199,3834.0,3833.9,0.001]
[1761882839240,9.09173403,3834.0,3833.9,0.001]
[1761882839444,9.19313403,3834.0,3833.9,0.001]
[1761882840856,10.59281403,3834.0,3833.9,0.001]
[1761882841468,8.39363314,3834.0,3833.9,0.001]
[1761882841624,11.00187518,3834.0,3833.9,0.001]
[1761882841823,5.46187718,3834.0,3833.9,0.001]
[1761882842022,10.90047518,3834.0,3833.9,0.001]
[1761882843262,11.00187518,3834.0,3833.9,0.001]
[1761882843467,8.39363314,3834.0,3833.9,0.001]
[1761882843664,7.84063314,3834.0,3833.9,0.4777]
[1761882844013,7.84063314,3834.0,3833.9,0.001]
[1761882844126,0.40906115,3834.0,3833.9,0.4777]
[1761882844323,0.10458404,3834.6,3833.9,0.9409]
[1761882844573,5.64458204,3834.6,3834.5,0.4767]
[1761882844726,5.94900268,3834.6,3834.5,0.4767]
[1761882844922,7.35666166,3834.6,3834.5,0.4767]
[1761882845326,7.35666166,3834.6,3834.0,0.4632]
[1761882845327,5.539998,3834.5,3834.0,0.4632]
[1761882846355,5.539998,3834.5,3834.0,3.0714282]
[1761882846556,5.539998,3834.5,3834.0,0.4632]
[1761882846866,5.539998,3834.5,3834.1,0.4632]
[1761882847376,5.539998,3834.5,3833.2,2.60878513]
[1761882847377,5.544898,3834.0,3833.1,0.011]
[1761882847532,8.33115479,3834.2,3832.1,0.01]
[1761882847533,0.405504,3833.0,3832.1,0.01]
[1761882847733,11.06965279,3832.2,3832.1,0.01]
[1761882848465,13.67911993,3832.2,3832.1,0.01]
[1761882848882,16.65426193,3832.2,3832.1,0.01]
[1761882849090,13.54819479,3832.2,3832.1,0.01]
[1761882849282,16.15766193,3832.2,3832.1,0.01]
[1761882849567,10.63770714,3832.2,3832.1,0.011]
[1761882849931,5.09770914,3832.2,3832.1,0.011]
[1761882850167,8.02824,3832.2,3832.1,0.011]
[1761882850370,10.63770714,3832.2,3832.1,0.011]
[1761882850670,1.39968,3832.2,3832.1,1.1485]
[1761882850874,6.344509,3832.2,3832.1,1.1485]
[1761882851077,5.842521,3832.2,3832.1,1.1485]
[1761882851778,5.842521,3832.2,3832.1,0.4877]
[1761882852072,1.39968,3832.2,3832.1,0.4877]
[1761882852279,6.939678,3832.2,3832.1,0.4877]
[1761882852466,7.7392458,3832.2,3832.1,0.011]
[1761882852655,10.84141294,3832.2,3832.1,0.011]
[1761882853266,7.6336458,3832.2,3832.1,0.4877]
[1761882853476,7.6336458,3832.2,3832.1,0.6853]
[1761882854245,7.6336458,3832.2,3832.1,0.011]
[1761882854447,7.6336458,3832.2,3832.1,0.4877]
[1761882854448,4.747785,3832.2,3832.1,0.4877]
[1761882854652,0.1304,3832.2,3832.1,1.1485]
[1761882854954,2.232393,3832.2,3832.1,1.1485]
[1761882855153,0.1304,3832.2,3832.1,1.1485]
[1761882855566,2.245347,3832.2,3832.1,1.1485]
[1761882855965,2.245347,3832.2,3832.1,0.6853]
[1761882856181,7.070078,3832.2,3832.1,0.6853]
[1761882856685,7.8826858,3832.2,3832.1,0.011]
[1761882857186,10.49215294,3832.2,3832.1,0.011]
[1761882859284,10.97025294,3832.2,3832.1,0.011]
[1761882860684,10.49215294,3832.2,3832.1,0.011]
[1761882863692,10.49215294,3832.2,3831.7,0.001]
[1761882863693,8.55524154,3831.8,3831.7,0.001]
[1761882863870,16.04681006,3831.8,3831.7,0.001]
[1761882864066,11.77071235,3831.8,3831.7,0.001]
[1761882864282,17.31071035,3831.8,3831.7,0.001]
[1761882864480,2.610012,3831.4,3831.3,0.001]
[1761882864684,10.15938316,3831.4,3831.3,0.001]
[1761882864991,10.63538316,3831.4,3831.3,0.001]
[1761882865390,10.15938316,3831.4,3831.3,0.001]
[1761882868024,10.63538316,3831.4,3831.3,0.001]
[1761882869105,10.15938316,3831.4,3831.3,0.001]
[1761882869301,7.46167116,3831.4,3831.3,0.4794]
[1761882869506,3.678714,3831.4,3831.3,0.9696]
[1761882869830,4.129466,3831.4,3831.3,0.9696]
[1761882870005,3.405175,3831.4,3831.3,0.9696]
[1761882870207,4.418261,3831.4,3831.3,0.9696]
[1761882870422,4.156751,3831.4,3831.3,0.9696]
[1761882870608,4.339054,3831.4,3831.3,0.9696]
[1761882871294,6.939678,3831.4,3831.3,0.4794]
[1761882871495,7.7425458,3831.4,3831.3,0.001]
[1761882871897,7.6336458,3831.4,3831.3,0.001]
[1761882872095,10.2436578,3831.4,3831.3,0.001]
[1761882872927,7.6336458,3831.4,3831.3,0.001]
[1761882873224,7.6336458,3831.4,3831.3,0.4794]
[1761882873407,10.2436578,3831.4,3831.3,0.4794]
[1761882873608,7.6336458,3831.4,3831.3,0.4794]
[1761882873806,6.939678,3831.4,3831.3,0.4794]
[1761882874049,3.933175,3831.4,3831.3,0.9696]
[1761882874434,5.105065,3831.4,3831.3,0.9696]
[1761882875539,4.465081,3831.4,3831.3,0.9696]
[1761882876542,6.939678,3831.4,3831.3,0.9696]
[1761882877327,1.39968,3831.4,3831.3,0.9696]
[1761882877548,6.939678,3831.4,3831.3,0.9696]
[1761882877932,5.370527,3831.4,3831.3,0.4794]
[1761882878131,5.370527,3831.4,3831.3,0.001]
[1761882878132,7.52873232,3831.4,3831.3,0.001]
[1761882878329,9.09788332,3831.4,3831.3,0.001]
[1761882878723,8.98898332,3831.4,3831.3,0.001]
[1761882879213,6.37897132,3831.4,3831.3,0.001]
[1761882879713,0.40932555,3831.6,3831.3,0.001]
[1761882879714,5.539998,3831.5,3831.3,0.9696]
[1761882879925,5.539998,3831.5,3831.3,0.4912]
[1761882880127,5.539998,3831.5,3831.4,0.4784]
[1761882880441,5.539998,3831.5,3831.3,0.4912]
[1761882880442,5.539998,3831.4,3831.3,0.001]
[1761882881360,10.04718734,3831.4,3831.3,0.4794]
[1761882882417,4.50718934,3831.4,3831.3,0.4794]
[1761882882619,10.04718734,3831.4,3831.3,0.4794]
[1761882883342,11.44686734,3831.4,3831.3,0.4794]
[1761882885452,14.05687934,3831.4,3831.3,0.001]
[1761882885958,11.44686734,3831.4,3831.3,0.001]
[1761882886720,11.44686734,3831.4,3831.3,0.4794]
[1761882888426,5.90686934,3831.4,3831.3,0.4794]
[1761882888626,14.05687934,3831.4,3831.3,0.001]
[1761882889382,11.44686734,3831.4,3831.3,0.001]
[1761882890186,11.44686734,3831.4,3831.3,0.4904]
[1761882890853,11.44486734,3831.4,3831.3,0.4904]
[1761882891461,5.90486934,3831.4,3831.3,0.4904]
[1761882891659,11.44486734,3831.4,3831.3,0.4904]
[1761882892964,1.39968,3831.4,3831.3,0.9593]
[1761882893276,1.53008,3831.4,3831.3,0.9593]
[1761882893479,5.561904,3831.4,3831.3,0.9593]
[1761882894291,11.57726734,3831.4,3831.3,0.4904]
[1761882894485,11.57726734,3831.4,3831.3,0.9593]
[1761882894865,11.57726734,3831.4,3831.3,0.001]
[1761882895071,11.82696734,3831.4,3831.3,0.001]
[1761882895258,11.57726734,3831.4,3831.3,0.001]
[1761882895658,11.82696734,3831.4,3831.3,0.001]
[1761882896274,11.57726734,3831.4,3831.3,0.001]
[1761882898014,11.82696734,3831.4,3831.3,0.001]
[1761882898317,15.66080653,3831.4,3831.3,0.001]
[1761882900213,16.14240653,3831.4,3831.3,0.001]
[1761882900469,21.05106898,3831.4,3831.3,0.001]
[1761882901990,21.05306898,3831.4,3831.3,0.001]
[1761882902609,13.05279453,3831.4,3831.3,0.001]
[1761882902810,15.66280653,3831.4,3831.3,0.001]
[1761882903013,13.05279453,3831.4,3831.3,0.001]
[1761882903591,15.41310653,3831.4,3831.3,0.001]
[1761882903792,15.66510653,3831.4,3831.3,0.001]
[1761882904308,10.12510853,3831.4,3831.3,0.001]
[1761882904513,15.66510653,3831.4,3831.3,0.001]
[1761882905434,20.17229587,3831.4,3831.3,0.001]
[1761882905792,20.65159587,3831.4,3831.3,0.001]
[1761882907616,21.43949616,3831.4,3831.3,0.001]
[1761882909327,17.0917546,3831.4,3831.3,0.001]
[1761882909532,11.2997566,3831.4,3831.3,0.001]
[1761882909706,17.0940546,3831.4,3831.3,0.001]
[1761882909907,17.50340686,3831.4,3831.3,0.001]
[1761882910833,17.98050686,3831.4,3831.3,0.001]
[1761882911027,18.36693404,3831.4,3831.3,0.001]
[1761882912095,18.77243804,3831.4,3831.3,0.001]
[1761882912594,9.95533025,3831.2,3831.1,0.01]
[1761882912798,12.0599577,3831.2,3831.1,0.01]
[1761882912999,12.5439577,3831.2,3831.1,0.01]
[1761882917150,8.65787827,3831.2,3831.1,0.01]
[1761882917450,8.25160516,3831.2,3831.1,0.01]
[1761882917837,8.25160516,3831.2,3831.1,0.4799]
[1761882918031,10.86175341,3831.2,3831.1,0.4799]
[1761882918231,8.25160516,3831.2,3831.1,0.4799]
[1761882918735,2.71160716,3831.2,3831.1,0.9786]
[1761882919046,8.25160516,3831.2,3831.1,0.9786]
[1761882919745,10.86175341,3831.2,3831.1,0.9796]
[1761882919966,10.86175341,3831.2,3831.1,0.4809]
[1761882920454,8.25160516,3831.2,3831.1,0.4809]
[1761882922616,8.25160516,3831.2,3831.1,0.9734]
[1761882922972,1.39968,3831.2,3831.1,0.9734]
[1761882923165,6.939678,3831.2,3831.1,0.9734]
[1761882924634,6.939678,3831.2,3831.1,0.4809]
[1761882925981,1.39968,3831.2,3831.1,0.4809]
[1761882926124,6.939678,3831.2,3831.1,0.4809]
[1761882927223,8.52766908,3831.2,3831.1,0.4809]
[1761882928172,2.98767108,3831.2,3831.1,0.4809]
[1761882928325,8.52766908,3831.2,3831.1,0.4809]
[1761882929280,8.52766908,3831.2,3831.1,1.1702]
[1761882932999,6.939678,3831.2,3831.1,1.1702]
[1761882933148,1.39968,3831.2,3831.1,1.1702]
[1761882933350,3.422364,3831.2,3831.1,1.1702]
[1761882933579,1.39968,3831.2,3831.1,1.1702]
[1761882933796,4.009403,3831.2,3831.1,1.1702]
[1761882934160,6.939678,3831.2,3831.1,1.1702]
[1761882934491,7.404178,3831.2,3831.1,0.6777]
[1761882934689,2.61028452,3831.0,3830.9,0.001]
[1761882934874,15.48639993,3831.0,3830.9,0.001]
[1761882935190,17.61887723,3831.0,3830.9,0.001]
[1761882936162,18.02827008,3831.0,3830.9,0.001]
[1761882939190,12.48827208,3831.0,3830.9,0.001]
[1761882939491,18.02827008,3831.0,3830.9,0.001]
[1761882940098,17.61887723,3831.0,3830.9,0.001]
[1761882943468,18.02827186,3831.0,3830.9,0.001]